bitfinex-derivatives/quotes_BTCF0:USTF0_20250308
["timestamp","ask_amount","ask_price","bid_price","bid_amount"]
[1741447883859,0.3608,86653.0,86652.0,0.1154364]
[1741447886762,0.36955597,86653.0,86652.0,0.1154364]
[1741447887064,0.36955597,86653.0,86652.0,0.1790364]
[1741447887663,0.36955597,86653.0,86652.0,1.19539789]
[1741447888261,0.40275597,86653.0,86652.0,1.19539789]
[1741447889048,0.00728286,86653.0,86652.0,1.19539789]
[1741447889252,0.031,86663.0,86662.0,0.1154231]
[1741447889850,0.031,86663.0,86662.0,0.1780231]
[1741447891653,0.032,86663.0,86662.0,0.1780231]
[1741447891951,0.1,86658.0,86652.0,0.003]
[1741447892148,0.0643,86657.0,86653.0,0.0881175]
[1741447892354,0.3608,86654.0,86653.0,0.0304]
[1741447892564,0.3608,86654.0,86653.0,0.1458351]
[1741447893171,0.4246,86654.0,86653.0,0.1458351]
[1741447893655,0.4246,86654.0,86649.0,0.1154403]
[1741447893854,0.4246,86654.0,86653.0,0.1154351]
[1741447894167,0.4246,86654.0,86653.0,0.0654351]
[1741447894553,0.4246,86654.0,86653.0,0.1298351]
[1741447895956,0.3941,86654.0,86653.0,0.1298351]
[1741447897061,0.4248,86654.0,86653.0,0.1298351]
[1741447897368,0.064,86654.0,86653.0,0.1298351]
[1741447897763,0.4248,86654.0,86653.0,0.1298351]
[1741447901868,0.3941,86654.0,86653.0,0.1298351]
[1741447903075,0.4265,86654.0,86653.0,0.1298351]
[1741447903568,0.3608,86654.0,86653.0,0.1298351]
[1741447904171,0.391,86654.0,86653.0,0.1298351]
[1741447904371,0.4234,86654.0,86653.0,0.1298351]
[1741447906574,0.4234,86654.0,86653.0,0.0992351]
[1741447906575,0.4549,86654.0,86653.0,0.0992351]
[1741447906769,0.5703337,86654.0,86653.0,0.1164351]
[1741447907076,0.4549,86654.0,86653.0,0.1164351]
[1741447907266,0.5703337,86654.0,86653.0,0.1164351]
[1741447907977,0.5703337,86654.0,86653.0,0.001]
[1741447908277,0.5049,86654.0,86653.0,0.1164351]
[1741447908464,0.7203337,86654.0,86653.0,0.001]
[1741447908779,0.6203337,86654.0,86653.0,0.001]
[1741447909373,0.6223434,86654.0,86653.0,0.001]
[1741447909574,0.5069097,86654.0,86651.0,0.0164375]
[1741447909772,0.1154364,86652.0,86651.0,0.1154373]
[1741447909974,0.1154364,86652.0,86650.0,0.080439]
[1741447910171,0.1799377,86651.0,86648.0,0.0577203]
[1741447910373,0.1799377,86651.0,86650.0,0.115439]
[1741447910567,0.1799377,86651.0,86650.0,0.009439]
[1741447910773,0.1248784,86650.0,86648.0,0.1154406]
[1741447910972,0.1,86650.0,86647.0,0.0577211]
[1741447911177,0.1479978,86653.0,86651.0,0.002]
[1741447911178,0.1154372,86652.0,86651.0,0.002]
[1741447911379,0.09028,86653.0,86652.0,0.1154364]
[1741447911577,0.3057151,86653.0,86652.0,0.1154364]
[1741447911876,0.1154377,86651.0,86650.0,0.0577191]
[1741447912078,0.1154377,86651.0,86644.0,0.06477311]
[1741447912079,0.05,86647.0,86646.0,0.1154444]
[1741447912378,0.4108,86647.0,86646.0,0.1154444]
[1741447914178,0.4108,86647.0,86646.0,0.1758444]
[1741447914373,0.5108,86647.0,86646.0,0.1758444]
[1741447914569,0.3608,86647.0,86646.0,0.1758444]
[1741447914876,0.1154457,86645.0,86644.0,0.00017311]
[1741447915486,0.1154457,86645.0,86644.0,3.515e-05]
[1741447915975,0.1124457,86645.0,86644.0,3.515e-05]
[1741447916179,0.30645576,86645.0,86644.0,3.515e-05]
[1741447916378,0.34401006,86645.0,86629.0,0.1154661]
[1741447916574,0.1154671,86629.0,86628.0,0.1154684]
[1741447916767,0.3608,86632.0,86627.0,0.20650607]
[1741447916976,0.0315,86628.0,86627.0,0.32197577]
[1741447917482,0.0315,86628.0,86619.0,0.00017311]
[1741447917483,0.1469684,86628.0,86619.0,0.00017311]
[1741447917680,0.3608,86620.0,86619.0,0.15789339]
[1741447917981,0.3608,86620.0,86619.0,0.14645351]
[1741447921179,0.3608,86620.0,86619.0,0.17645351]
[1741447922081,0.3578,86620.0,86619.0,0.18811965]
[1741447922873,0.3578,86620.0,86619.0,0.17645351]
[1741447923377,0.4732791,86620.0,86619.0,0.00017311]
[1741447923580,0.3578,86620.0,86608.0,0.0322]
[1741447923884,0.4762937,86609.0,86608.0,0.0322]
[1741447924078,0.1154976,86607.0,86605.0,0.115499]
[1741447924388,0.0652,86606.0,86605.0,0.1154986]
[1741447925383,0.1806977,86606.0,86605.0,0.1154986]
[1741447925880,0.0332,86606.0,86605.0,0.1154986]
[1741447926179,0.0332,86606.0,86605.0,0.1174986]
[1741447926387,0.04639071,86607.0,86606.0,0.1154977]
[1741447926578,0.04438,86607.0,86606.0,1.16085919]
[1741447927476,0.04420689,86607.0,86606.0,1.52165919]
[1741447929779,0.04420689,86607.0,86606.0,1.52265919]
[1741447929979,0.04420689,86607.0,86606.0,1.52565919]
[1741447930372,0.00862288,86620.0,86619.0,0.1154804]
[1741447930573,0.36148,86631.0,86630.0,0.1154657]
[1741447930787,0.4762644,86631.0,86630.0,0.1154657]
[1741447930990,0.5072644,86631.0,86630.0,0.1154657]
[1741447931679,0.3918,86631.0,86630.0,0.1154657]
[1741447932187,0.1154684,86628.0,86627.0,0.0307]
[1741447932778,0.1465662,86630.0,86629.0,0.1154671]
[1741447933081,0.0621,86630.0,86629.0,0.1154671]
[1741447933276,0.07392817,86630.0,86629.0,0.1154671]
[1741447933989,0.1154751,86623.0,86622.0,0.00017311]
[1741447934282,0.1,86619.0,86618.0,0.1154817]
[1741447935788,0.1,86619.0,86618.0,0.1164817]
[1741447936493,0.10201045,86619.0,86618.0,0.1164817]
[1741447937389,0.00201045,86619.0,86618.0,0.1164817]
[1741447937686,0.00401045,86619.0,86618.0,0.1164817]
[1741447938096,0.10401045,86619.0,86618.0,0.1164817]
[1741447938484,0.10401045,86619.0,86618.0,0.001]
[1741447938795,0.1154911,86611.0,86605.0,0.0328]
[1741447938985,0.4762911,86611.0,86605.0,0.0328]
[1741447939186,0.4762911,86611.0,86596.0,1.1389721]
[1741447939187,0.46142235,86611.0,86601.0,0.1155041]
[1741447939387,0.1154978,86606.0,86602.0,0.0328]
[1741447939686,0.0269,86599.0,86598.0,0.1168278]
[1741447939989,0.0269,86599.0,86598.0,0.1155078]
[1741447940384,0.1,86599.0,86598.0,0.1155078]
[1741447940692,0.097,86599.0,86598.0,0.1155078]
[1741447940885,0.1,86599.0,86596.0,0.0017321]
[1741447941087,0.065,86598.0,86597.0,0.1155096]
[1741447941281,0.061,86598.0,86597.0,0.1155096]
[1741447941484,0.061,86598.0,86597.0,0.1470096]
[1741447941681,0.061,86598.0,86597.0,0.0315]
[1741447941884,0.1155097,86597.0,86596.0,0.0017321]
[1741447942185,0.1155097,86597.0,86596.0,0.1172432]
[1741447942380,0.1477097,86597.0,86596.0,0.1155111]
[1741447942694,0.0322,86597.0,86596.0,0.1470111]
[1741447942886,0.1477097,86597.0,86596.0,0.1470111]
[1741447943083,0.1447097,86597.0,86596.0,0.1470111]
[1741447943587,0.1447097,86597.0,86595.0,0.1155112]
[1741447943588,0.1447097,86597.0,86592.0,0.1155159]
[1741447943792,0.3568,86593.0,86592.0,0.1155159]
[1741447944590,0.3883,86593.0,86592.0,0.1155159]
[1741447944787,0.3883,86593.0,86592.0,0.1195159]
[1741447944987,0.3883,86593.0,86592.0,0.1514159]
[1741447945188,0.3843,86593.0,86592.0,0.1514159]
[1741447945982,0.3843,86593.0,86592.0,0.1827159]
[1741447946492,0.3843,86593.0,86592.0,0.1787159]
[1741447948598,0.3853,86593.0,86592.0,0.1807159]
[1741447949596,0.3538,86593.0,86592.0,1.19307739]
[1741447950097,0.3833,86593.0,86592.0,1.19107739]
[1741447951590,0.3528,86593.0,86592.0,1.19107739]
[1741447953496,1.2286,86593.0,86592.0,1.19107739]
[1741447957102,1.2286,86593.0,86592.0,0.1468159]
[1741447957601,1.3618,86593.0,86592.0,0.1468159]
[1741447957794,1.2618,86593.0,86590.0,0.00011571]
[1741447957995,0.1155177,86591.0,86590.0,0.00011571]
[1741447958295,0.12703654,86591.0,86590.0,0.00011571]
[1741447958601,0.15633654,86591.0,86590.0,0.00011571]
[1741447958799,0.1155191,86590.0,86587.0,0.0231225]
[1741447959097,0.0231225,86586.0,86585.0,0.10034061]
[1741447959304,0.1,86586.0,86585.0,0.10034061]
[1741447959694,0.1155284,86583.0,86582.0,0.0302]
[1741447959897,0.0577641,86584.0,86580.0,0.1155323]
[1741447960195,0.02875272,86581.0,86580.0,0.1155324]
[1741447960590,0.12155272,86581.0,86577.0,0.0317]
[1741447960797,0.12155272,86581.0,86571.0,0.0577716]
[1741447960996,0.3608,86573.0,86572.0,0.2050142]
[1741447961196,0.3608,86573.0,86572.0,1.21737569]
[1741447961404,0.3608,86573.0,86572.0,1.24927569]
[1741447965905,0.0311,86578.0,86577.0,0.1155364]
[1741447966107,0.3608,86583.0,86582.0,0.1155297]
[1741447966408,0.3932,86583.0,86582.0,0.1155297]
[1741447966797,0.4263,86583.0,86582.0,0.1155297]
[1741447967105,0.4263,86583.0,86582.0,0.1794297]
[1741447968700,0.0685,86583.0,86582.0,0.1794297]
[1741447969411,0.4293,86583.0,86582.0,0.1794297]
[1741447969703,0.5448284,86583.0,86582.0,0.1794297]
[1741447969909,0.5468284,86583.0,86582.0,0.1794297]
[1741447970109,0.4313,86583.0,86582.0,0.1794297]
[1741447971108,0.3982,86583.0,86582.0,0.1794297]
[1741447971307,0.0374,86583.0,86582.0,1.19179119]
[1741447972714,0.005,86583.0,86582.0,1.19179119]
[1741447973705,0.002,86583.0,86582.0,1.19179119]
[1741447974112,0.00878923,86585.0,86584.0,0.1155271]
[1741447974310,0.00878923,86585.0,86584.0,1.12788859]
[1741447977215,0.00878923,86585.0,86584.0,1.12988859]
[1741447981617,0.15306765,86585.0,86584.0,0.1175271]
[1741447981812,0.51386765,86585.0,86584.0,0.1175271]
[1741447982124,0.48511493,86585.0,86584.0,0.1175271]
[1741447982314,0.12431493,86585.0,86584.0,0.002]
[1741447982514,0.24249493,86585.0,86584.0,0.002]
[1741447982816,0.24249493,86585.0,86569.0,0.0577729]
[1741447982817,0.36220111,86585.0,86569.0,0.0577729]
[1741447983008,0.36220111,86585.0,86568.0,0.20650607]
[1741447983009,0.38955272,86570.0,86568.0,0.20650607]
[1741447983213,0.0955,86569.0,86568.0,0.32205447]
[1741447984321,0.0955,86569.0,86568.0,0.1155484]
[1741447986122,0.0955,86569.0,86568.0,0.1165484]
[1741447987718,0.0955,86569.0,86568.0,0.1482484]
[1741447987911,0.0637,86569.0,86568.0,0.1803484]
[1741447988113,0.00064,86570.0,86569.0,0.1155471]
[1741447988411,0.031,86581.0,86580.0,0.1155324]
[1741447988824,0.031,86581.0,86580.0,1.12789389]
[1741447989015,0.031,86581.0,86580.0,1.15789389]
[1741447989615,0.01335751,86592.0,86584.0,1.01236149]
[1741447989823,0.77767819,86593.0,86592.0,1.12787789]
[1741447990527,0.77767819,86593.0,86592.0,1.15787789]
[1741447990823,0.78651258,86593.0,86592.0,1.15787789]
[1741447991413,0.78751258,86593.0,86592.0,1.15787789]
[1741447992316,0.78851258,86593.0,86592.0,1.15787789]
[1741447992619,0.27702698,86593.0,86592.0,1.15787789]
[1741447992813,0.14796408,86593.0,86592.0,1.15787789]
[1741447993217,0.08763528,86593.0,86592.0,1.15787789]
[1741447993713,0.05734058,86593.0,86592.0,1.15787789]
[1741447994218,0.01003811,86593.0,86592.0,1.15787789]
[1741447994419,0.00017321,86601.0,86600.0,0.1155057]
[1741447994627,0.00017321,86601.0,86600.0,1.48866719]
[1741447995218,1e-08,86601.0,86600.0,1.53104335]
[1741447995417,1e-08,86601.0,86600.0,1.61656335]
[1741447995919,0.00400001,86601.0,86600.0,1.61656335]
[1741447996616,0.00800001,86601.0,86600.0,1.61656335]
[1741447996818,0.0306,86618.0,86612.0,0.1154897]
[1741447997023,0.0306,86618.0,86612.0,1.12785119]
[1741447997525,0.1154608,86634.0,86612.0,1.01236149]
[1741447997722,0.08556,86638.0,86630.0,0.1154657]
[1741447997723,0.0643,86631.0,86630.0,0.1154657]
[1741447997925,0.06447321,86631.0,86630.0,0.1154657]
[1741447998125,0.06447321,86631.0,86630.0,1.12782719]
[1741447998323,0.17993761,86631.0,86630.0,1.12782719]
[1741447998517,0.06447321,86631.0,86630.0,1.12782719]
[1741447999230,0.06947321,86631.0,86630.0,1.12782719]
[1741447999532,0.06947321,86631.0,86630.0,0.1154657]
[1741447999726,0.07447321,86631.0,86630.0,0.1154657]
[1741448000920,0.10537321,86631.0,86630.0,0.1154657]
[1741448002118,0.10537321,86631.0,86628.0,0.0577337]
[1741448002323,0.1154671,86629.0,86625.0,0.0577359]
[1741448002523,0.064,86628.0,86627.0,0.1154697]
[1741448003533,0.1154709,86627.0,86621.0,0.1154769]
[1741448003730,0.1154717,86626.0,86622.0,0.115476]
[1741448004029,0.1154717,86626.0,86618.0,0.0577406]
[1741448004030,0.0314,86625.0,86624.0,0.1154737]
[1741448004429,0.0629,86625.0,86624.0,0.1154737]
[1741448005422,0.0649,86625.0,86624.0,0.1154737]
[1741448005622,0.0679,86625.0,86624.0,0.1154737]
[1741448007935,0.1833724,86625.0,86624.0,0.1154737]
[1741448008326,0.0679,86625.0,86624.0,0.1154737]
[1741448009838,0.0577383,86622.0,86619.0,0.1154795]
[1741448010023,0.061,86621.0,86614.0,0.0304]
[1741448010227,0.115487,86616.0,86615.0,0.1154835]
[1741448010440,0.1154871,86614.0,86606.0,0.1154969]
[1741448010739,0.1154871,86614.0,86603.0,0.0316]
[1741448010935,0.1155084,86598.0,86596.0,0.1155102]
[1741448011134,0.1155084,86598.0,86590.0,0.1155186]
[1741448011330,0.1155084,86598.0,86593.0,0.115514]
[1741448011526,0.1155084,86598.0,86597.0,0.11724178]
[1741448011527,0.1776084,86598.0,86597.0,0.11724178]
[1741448011733,0.1766084,86598.0,86597.0,0.11724178]
[1741448012032,0.1746084,86598.0,86597.0,0.1155097]
[1741448012338,0.1756084,86598.0,86597.0,0.1205097]
[1741448012735,0.1766084,86598.0,86597.0,0.1275097]
[1741448012933,0.1766084,86598.0,86597.0,0.1225097]
[1741448013336,0.1766084,86598.0,86597.0,0.007]
[1741448014225,0.0577586,86592.0,86577.0,0.057768]
[1741448014426,0.3608,86589.0,86579.0,1.01236149]
[1741448014635,0.4763209,86589.0,86588.0,0.1155217]
[1741448015031,0.48117468,86589.0,86588.0,0.1155217]
[1741448015437,0.51357468,86589.0,86588.0,0.1155217]
[1741448015741,0.51357468,86589.0,86586.0,0.115523]
[1741448015742,0.1155231,86587.0,86586.0,0.2310469]
[1741448016633,0.03735378,86587.0,86586.0,1.24340839]
[1741448017231,0.03735378,86587.0,86585.0,0.1155257]
[1741448017541,0.1155296,86583.0,86582.0,0.1155281]
[1741448017732,0.1155364,86577.0,86576.0,0.0328]
[1741448017936,0.1155337,86579.0,86578.0,1.01236149]
[1741448018441,0.1155391,86575.0,86572.0,0.1155423]
[1741448018933,0.1155391,86575.0,86574.0,1.37316149]
[1741448019138,0.1155378,86577.0,86576.0,0.0793947]
[1741448019334,0.1155378,86577.0,86576.0,1.01236149]
[1741448019729,0.1155378,86577.0,86576.0,1.12789919]
[1741448019930,0.1155378,86577.0,86576.0,1.01236149]
[1741448020236,0.1155378,86577.0,86570.0,0.1155455]
[1741448020237,0.1155444,86571.0,86570.0,0.1155455]
[1741448020548,0.4763444,86571.0,86570.0,1.12790699]
[1741448020736,0.3608,86571.0,86570.0,1.12790699]
[1741448022233,0.5079444,86571.0,86570.0,1.12790699]
[1741448022738,0.3924,86571.0,86570.0,1.01236149]
[1741448023037,0.3924,86571.0,86570.0,1.12790729]
[1741448023538,0.3924,86571.0,86570.0,1.16090729]
[1741448023927,0.3924,86571.0,86570.0,1.19240729]
[1741448024341,0.0844,86588.0,86570.0,1.55320729]
[1741448024549,0.03177321,86585.0,86584.0,0.1155271]
[1741448025228,0.03177321,86585.0,86584.0,0.1790271]
[1741448025629,0.03477321,86585.0,86584.0,0.1790271]
[1741448027844,0.03177321,86585.0,86584.0,0.1790271]
[1741448028034,0.03277321,86585.0,86584.0,0.1790271]
[1741448028529,0.03277321,86585.0,86584.0,0.1800271]
[1741448028938,0.03177321,86585.0,86584.0,0.1800271]
[1741448029739,0.00017321,86585.0,86584.0,1.19238859]
[1741448031543,0.00017321,86585.0,86584.0,1.19138859]
[1741448031743,0.00017321,86585.0,86584.0,1.19238859]
[1741448032340,0.00017321,86585.0,86584.0,1.55318859]
[1741448042050,0.0647,86597.0,86584.0,1.55318859]
[1741448042051,0.02908267,86607.0,86584.0,1.43766149]
[1741448042351,0.032,86599.0,86598.0,0.1155084]
[1741448042747,0.032,86599.0,86598.0,1.12786989]
[1741448042945,0.032,86599.0,86598.0,1.19186989]
[1741448043338,0.0647,86599.0,86598.0,0.1155084]
[1741448043541,0.1802071,86599.0,86598.0,0.1155084]
[1741448044952,0.1892071,86599.0,86598.0,0.1155084]
[1741448045554,0.0737,86599.0,86598.0,0.1155084]
[1741448045956,0.1892071,86599.0,86598.0,0.1155084]
[1741448048146,0.0737,86599.0,86598.0,0.1155084]
[1741448048548,0.2656,86599.0,86598.0,0.1155084]
[1741448049749,0.0737,86599.0,86598.0,0.1155084]
[1741448049955,0.041,86599.0,86598.0,1.12786989]
[1741448050158,0.00182679,86599.0,86598.0,1.50042968]
[1741448050347,0.00182679,86599.0,86598.0,1.56522968]
[1741448053249,0.00182679,86599.0,86598.0,1.20442968]
[1741448053951,0.00182679,86599.0,86598.0,1.17272968]
[1741448059561,0.11733389,86599.0,86598.0,1.17272968]
[1741448059751,0.00182679,86599.0,86598.0,1.17272968]
[1741448063161,0.00182679,86599.0,86598.0,1.20292968]
[1741448063764,9e-08,86599.0,86598.0,1.20292968]
[1741448064151,9e-08,86599.0,86598.0,1.20592968]
[1741448065067,9e-08,86599.0,86598.0,1.35592968]
[1741448065363,0.0616,86619.0,86606.0,0.1154977]
[1741448065572,0.1770804,86619.0,86606.0,1.48865919]
[1741448065863,0.1154819,86618.0,86606.0,1.48865919]
[1741448066366,0.0616,86619.0,86606.0,1.55285919]
[1741448066758,0.057741,86618.0,86606.0,1.55285919]
[1741448066961,0.1154901,86612.0,86606.0,1.55885919]
[1741448067163,0.063,86611.0,86606.0,1.55885919]
[1741448069369,0.0315,86611.0,86606.0,1.55885919]
[1741448073081,0.0302,86618.0,86606.0,1.55885919]
[1741448073277,0.0326,86617.0,86606.0,1.55885919]
[1741448076186,0.0326,86617.0,86616.0,0.1154844]
[1741448076374,0.04125344,86617.0,86616.0,1.48864589]
[1741448078779,0.04225344,86617.0,86616.0,1.48864589]
[1741448080179,0.04125344,86617.0,86616.0,1.48864589]
[1741448080375,0.04125344,86617.0,86616.0,1.49264589]
[1741448080584,0.04125344,86617.0,86616.0,1.49564589]
[1741448082073,0.04125344,86617.0,86616.0,1.49264589]
[1741448082268,0.04125344,86617.0,86616.0,1.49564589]
[1741448082668,0.04125344,86617.0,86616.0,1.49464589]
[1741448083072,0.04125344,86617.0,86616.0,1.49364589]
[1741448084069,0.04125344,86617.0,86616.0,1.49464589]
[1741448085178,0.04125344,86617.0,86616.0,1.49164589]
[1741448085375,0.04125344,86617.0,86616.0,1.49464589]
[1741448085883,0.04125344,86617.0,86616.0,1.55704589]
[1741448086869,0.04125344,86617.0,86616.0,1.55804589]
[1741448087780,0.00865344,86617.0,86616.0,1.55804589]
[1741448087971,0.0611,86624.0,86623.0,0.1154751]
[1741448088173,0.0611,86624.0,86623.0,1.12783659]
[1741448089476,0.0611,86624.0,86623.0,1.12883659]
[1741448089677,0.0913,86624.0,86623.0,1.12983659]
[1741448092873,0.0913,86624.0,86623.0,1.14139964]
[1741448093073,0.0913,86624.0,86623.0,0.12903815]
[1741448095788,0.0913,86624.0,86623.0,0.13103815]
[1741448096472,0.0913,86624.0,86623.0,0.12903815]
[1741448096682,0.0913,86624.0,86623.0,0.13103815]
[1741448097288,0.0913,86624.0,86623.0,0.12903815]
[1741448097588,0.0913,86624.0,86623.0,0.13103815]
[1741448099080,0.0913,86624.0,86623.0,0.12803815]
[1741448099279,0.0913,86624.0,86623.0,0.12903815]
[1741448099879,0.0913,86624.0,86623.0,0.13003815]
[1741448100080,0.0913,86624.0,86623.0,1.14239964]
[1741448100081,0.0611,86624.0,86623.0,1.14239964]
[1741448100385,0.0611,86624.0,86623.0,1.14139964]
[1741448100683,0.0611,86624.0,86623.0,1.14439964]
[1741448102393,0.0611,86624.0,86623.0,0.13303815]
[1741448102589,0.0611,86624.0,86623.0,0.13203815]
[1741448102989,0.0611,86624.0,86623.0,0.12903815]
[1741448103186,0.0611,86624.0,86623.0,1.14339964]
[1741448103688,0.0311,86624.0,86623.0,1.20859964]
[1741448103883,0.00868254,86625.0,86624.0,0.1154737]
[1741448104085,0.00868254,86625.0,86624.0,1.19323519]
[1741448105988,0.00868254,86625.0,86624.0,1.19923519]
[1741448106491,0.00868254,86625.0,86624.0,1.20323519]
[1741448107786,0.00868254,86625.0,86624.0,1.17083519]
[1741448108090,0.12415494,86625.0,86624.0,0.1254737]
[1741448108295,0.12415494,86625.0,86624.0,0.1244737]
[1741448108879,0.13596367,86625.0,86624.0,0.1234737]
[1741448109190,0.07108254,86625.0,86624.0,0.1234737]
[1741448109383,0.07108254,86625.0,86624.0,0.1174737]
[1741448110178,0.07108254,86625.0,86624.0,0.1154737]
[1741448111679,0.18655494,86625.0,86624.0,0.1164737]
[1741448111885,0.19813785,86625.0,86624.0,0.1174737]
[1741448112080,0.18655494,86625.0,86624.0,0.1174737]
[1741448112279,0.18655494,86625.0,86624.0,0.1164737]
[1741448112693,0.18655494,86625.0,86624.0,0.1154737]
[1741448112992,0.07108254,86625.0,86624.0,0.1154737]
[1741448113594,0.18655494,86625.0,86624.0,0.1154737]
[1741448114486,0.07108254,86625.0,86624.0,0.1271562]
[1741448117097,0.18655494,86625.0,86624.0,0.1154737]
[1741448117893,0.18655494,86625.0,86624.0,0.12711107]
[1741448119289,0.18655494,86625.0,86624.0,0.1154737]
[1741448119793,0.07108254,86625.0,86620.0,0.057739]
[1741448120090,0.1154804,86619.0,86618.0,0.12724695]
[1741448120687,0.1154831,86617.0,86616.0,0.00017321]
[1741448120886,0.1154977,86606.0,86600.0,0.77676]
[1741448121088,0.4762977,86606.0,86600.0,0.77828]
[1741448121289,0.5572577,86606.0,86600.0,0.00148]
[1741448121686,0.5562577,86606.0,86600.0,0.00148]
[1741448121892,0.5552577,86606.0,86601.0,0.1155039]
[1741448122087,0.6684577,86606.0,86605.0,0.25695974]
[1741448122298,0.55496,86606.0,86605.0,0.25695974]
[1741448122594,0.14416,86606.0,86605.0,0.28965974]
[1741448122791,0.0632,86606.0,86605.0,0.32125974]
[1741448122995,0.0304,86606.0,86605.0,1.33362123]
[1741448123395,0.3608,86617.0,86605.0,1.07666149]
[1741448123588,0.0304,86619.0,86616.0,1.01236149]
[1741448123788,0.00868254,86625.0,86624.0,1.12783519]
[1741448124191,0.18725494,86625.0,86624.0,0.1479737]
[1741448124394,0.58075494,86625.0,86624.0,0.1479737]
[1741448125283,0.43258254,86625.0,86624.0,0.1479737]
[1741448125689,0.07178254,86625.0,86624.0,0.1479737]
[1741448125891,0.07178254,86625.0,86624.0,0.1786737]
[1741448126704,0.18725494,86625.0,86624.0,0.1479737]
[1741448127685,0.07178254,86625.0,86624.0,0.1479737]
[1741448127893,0.03908254,86625.0,86624.0,0.1479737]
[1741448130504,0.03908254,86625.0,86624.0,0.1489737]
[1741448130702,0.15455494,86625.0,86624.0,0.1489737]
[1741448131306,0.15455494,86625.0,86616.0,0.05791511]
[1741448131307,0.03908254,86625.0,86616.0,0.05791511]
[1741448131491,0.1154831,86617.0,86616.0,0.00017321]
[1741448131802,0.1154831,86617.0,86616.0,0.11565761]
[1741448132104,0.0611,86618.0,86617.0,0.1154831]
[1741448132402,0.0611,86618.0,86617.0,0.1474831]
[1741448132699,0.0944,86618.0,86617.0,0.1806831]
[1741448132897,0.0303,86618.0,86617.0,1.19304459]
[1741448134703,0.0303,86618.0,86617.0,1.19504459]
[1741448135305,0.0303,86618.0,86617.0,1.19404459]
[1741448135501,0.0303,86618.0,86617.0,1.19604459]
[1741448135702,0.0315,86623.0,86622.0,0.1154764]
[1741448135904,0.0315,86623.0,86622.0,0.2104764]
[1741448136106,0.0315,86623.0,86622.0,1.22283789]
[1741448136699,0.00868254,86625.0,86624.0,0.1154737]
[1741448137007,0.00868254,86625.0,86624.0,1.12783519]
[1741448138209,0.00868254,86625.0,86624.0,1.12883519]
[1741448139008,0.00868254,86625.0,86624.0,1.12983519]
[1741448139707,0.12415494,86625.0,86624.0,0.1174737]
[1741448140404,0.15735494,86625.0,86624.0,0.1164737]
[1741448140806,0.15735494,86625.0,86624.0,0.1154737]
[1741448142116,0.04188254,86625.0,86624.0,0.1154737]
[1741448143411,0.15735494,86625.0,86624.0,0.1154737]
[1741448143615,0.1154751,86623.0,86622.0,0.0318]
[1741448143817,0.1154831,86617.0,86615.0,0.1154847]
[1741448144012,0.1154831,86617.0,86616.0,0.11565761]
[1741448144215,0.1154831,86617.0,86616.0,0.14845761]
[1741448144623,0.1154831,86617.0,86616.0,0.00017321]
[1741448146422,0.1154831,86617.0,86616.0,0.14875761]
[1741448148225,0.4762831,86617.0,86616.0,0.14875761]
[1741448150818,0.4762831,86617.0,86616.0,0.03327321]
[1741448151230,0.4762831,86617.0,86616.0,0.00017321]
[1741448152724,0.4762831,86617.0,86616.0,0.11565761]
[1741448152915,0.1217404,86619.0,86616.0,0.00017321]
[1741448153127,0.1217404,86619.0,86618.0,0.1154817]
[1741448153627,0.064,86619.0,86618.0,0.1154817]
[1741448153829,0.064,86619.0,86618.0,0.1778817]
[1741448155423,0.0328,86619.0,86618.0,1.19024319]
[1741448157224,0.0647,86619.0,86618.0,1.19024319]
[1741448158025,0.0328,86619.0,86618.0,1.19024319]
[1741448163127,0.0328,86619.0,86618.0,1.15954319]
[1741448172034,0.033,86624.0,86618.0,1.15954319]
[1741448172339,0.0318,86623.0,86622.0,0.1154764]
[1741448172845,0.00868254,86625.0,86622.0,1.12783789]
[1741448173041,0.00868254,86625.0,86624.0,1.12783519]
[1741448184149,0.12415494,86625.0,86624.0,1.12783519]
[1741448184354,0.12415494,86625.0,86624.0,0.1154737]
[1741448185058,0.0577396,86620.0,86616.0,0.11565561]
[1741448185249,0.1154831,86617.0,86616.0,0.11565561]
[1741448186555,0.0649,86619.0,86618.0,0.1154817]
[1741448187150,0.1803804,86619.0,86618.0,0.1154817]
[1741448188156,0.1823804,86619.0,86618.0,0.1154817]
[1741448190555,0.0669,86619.0,86618.0,0.1154817]
[1741448191351,0.0679,86619.0,86618.0,0.1154817]
[1741448191654,0.0659,86619.0,86618.0,0.1154817]
[1741448192457,0.0659,86619.0,86618.0,0.1484817]
[1741448193057,0.0649,86619.0,86618.0,0.1504817]
[1741448193259,0.0649,86619.0,86618.0,0.1514817]
[1741448193646,0.0649,86619.0,86618.0,0.1504817]
[1741448193860,0.0649,86619.0,86618.0,0.1524817]
[1741448194453,0.0649,86619.0,86618.0,0.1494817]
[1741448194651,0.0649,86619.0,86618.0,0.1524817]
[1741448195458,0.0649,86619.0,86618.0,1.16484319]
[1741448195650,0.0329,86619.0,86618.0,1.16484319]
[1741448196251,0.0329,86619.0,86618.0,1.16384319]
[1741448196966,0.0329,86619.0,86618.0,1.16584319]
[1741448197164,0.0329,86619.0,86618.0,1.16784319]
[1741448199364,0.0329,86619.0,86618.0,1.16484319]
[1741448199555,0.0329,86619.0,86618.0,1.16884319]
[1741448200151,0.1483804,86619.0,86618.0,0.1254817]
[1741448200461,0.1483804,86619.0,86618.0,0.1274817]
[1741448200861,0.1483804,86619.0,86618.0,0.1254817]
[1741448201061,0.1799804,86619.0,86618.0,0.1254817]
[1741448201458,0.1799804,86619.0,86618.0,0.006]
[1741448201658,0.5407804,86619.0,86618.0,0.006]
[1741448202367,0.5407804,86619.0,86618.0,0.00110427]
[1741448203057,0.5407804,86619.0,86618.0,0.1164817]
[1741448203261,0.5407804,86619.0,86618.0,0.1154817]
[1741448203862,0.5407804,86619.0,86616.0,0.05791531]
[1741448203863,0.1154831,86617.0,86616.0,0.00017321]
[1741448204459,0.1154831,86617.0,86616.0,0.11565761]
[1741448204754,0.1154831,86617.0,86616.0,0.00017321]
[1741448206068,0.1154831,86617.0,86616.0,0.11565761]
[1741448208266,0.1732469,86609.0,86608.0,0.1154948]
[1741448208468,0.1155031,86602.0,86601.0,0.4763042]
[1741448208663,0.1155031,86602.0,86601.0,0.3608]
[1741448209170,0.1155031,86602.0,86601.0,0.4763044]
[1741448209376,0.1762031,86602.0,86601.0,0.4763044]
[1741448210073,0.1732031,86602.0,86601.0,0.1155044]
[1741448210771,0.1742031,86602.0,86601.0,0.1155044]
[1741448210976,0.5350031,86602.0,86601.0,0.1155044]
[1741448211176,0.1155071,86599.0,86598.0,0.00173205]
[1741448212070,0.2155071,86599.0,86598.0,0.00173205]
[1741448212376,0.2155071,86599.0,86592.0,0.1155156]
[1741448212377,0.25201113,86599.0,86574.0,0.0577699]